bitfinex/quotes_ETHUSD_20220305
["timestamp","ask_amount","ask_price","bid_price","bid_amount"]
[1646513691909,1.21483883,2672.2,2672.0,7.37]
[1646513693209,1.68703447,2672.9,2672.0,7.37]
[1646513693411,0.69059238,2672.9,2672.0,7.37]
[1646513693611,1.53424727,2672.8,2672.0,7.37]
[1646513693810,0.00355791,2672.9,2672.0,7.37]
[1646513693811,1.53780518,2672.9,2672.0,8.37]
[1646513694011,1.53424727,2672.8,2672.0,8.37]
[1646513694212,1.53424727,2672.7,2672.0,9.37284535]
[1646513694413,1.13813662,2672.9,2672.0,9.37284535]
[1646513694414,1.13457871,2672.9,2672.1,3.5]
[1646513694686,1.13457871,2672.9,2672.2,0.187]
[1646513694687,1.5339649,2672.8,2672.2,0.187]
[1646513694885,1.13813684,2672.9,2672.5,0.06465211]
[1646513695084,0.00355813,2672.9,2672.5,0.06465211]
[1646513695689,1.53388445,2673.1,2672.5,0.06465211]
[1646513695883,0.00355829,2672.9,2672.5,0.06465211]
[1646513698082,1.20696081,2673.0,2672.5,0.06465211]
[1646513698320,0.00355828,2672.9,2672.5,0.06465211]
[1646513699307,1.20696081,2673.0,2672.5,0.06465211]
[1646513699510,0.00355828,2672.9,2672.5,0.06465211]
[1646513699912,0.00355828,2672.9,2672.4,0.3742]
[1646513700512,0.18796,2673.6,2672.4,0.3742]
[1646513700715,0.00355825,2672.9,2672.5,3.5]
[1646513700918,0.00355825,2672.9,2672.4,0.3742]
[1646513701713,2.49861837,2673.1,2672.4,0.3742]
[1646513701914,0.96475366,2673.1,2672.4,0.3742]
[1646513702166,0.00355825,2672.9,2672.4,0.3742]
[1646513702966,1.53391802,2673.0,2672.4,0.3742]
[1646513703167,0.00355825,2672.9,2672.4,0.3742]
[1646513703665,0.00355825,2672.9,2672.3,6.061]
[1646513704067,1.53391802,2673.0,2672.3,6.061]
[1646513704267,0.00140975,2672.9,2672.3,6.061]
[1646513704874,0.00140975,2672.9,2672.6,0.06425182]
[1646513705076,0.00140975,2672.9,2672.0,7.4850695]
[1646513705274,1.53391802,2672.9,2671.4,7.37]
[1646513705472,1.53391802,2672.9,2671.6,0.00356003]
[1646513705473,4.04,2672.8,2671.6,0.00356003]
[1646513705674,1.53391802,2672.7,2671.6,0.00356003]
[1646513705921,3.5,2672.6,2671.6,0.00356003]
[1646513706126,1.13889626,2671.8,2671.6,0.00356003]
[1646513706519,1.13889626,2671.8,2671.4,7.37]
[1646513706920,1.13889626,2671.8,2671.4,8.37]
[1646513707323,3.5,2672.4,2671.4,8.37]
[1646513707523,1.5345001,2672.3,2671.4,1.0]
[1646513707724,3.5,2672.2,2671.2,0.00163823]
[1646513707926,1.5345001,2672.1,2671.2,0.00163823]
[1646513708324,1.1966893,2671.8,2671.2,0.00163823]
[1646513708528,1.1966893,2671.8,2671.1,1.0]
[1646513708731,1.1966893,2671.8,2671.0,0.13278281]
[1646513709125,1.1966893,2671.8,2671.3,0.00375637]
[1646513710062,4.04,2672.5,2671.1,0.00163823]
[1646513710262,4.04,2672.5,2671.4,0.0038035]
[1646513710263,1.53452975,2672.4,2671.4,0.0038035]
[1646513710562,3.5,2672.3,2671.4,0.0038035]
[1646513710861,1.53452975,2672.2,2671.4,0.0038035]
[1646513711061,3.5,2672.1,2671.4,0.0038035]
[1646513711266,1.0889888,2671.8,2671.1,0.00163823]
[1646513711463,3.5,2672.4,2671.6,0.00380334]
[1646513711663,1.53451144,2672.3,2671.6,0.00380334]
[1646513711863,3.5,2672.2,2671.6,0.00380334]
[1646513712063,1.53451144,2672.1,2671.6,0.00380334]
[1646513712464,3.5,2672.4,2671.1,0.00163823]
[1646513712465,1.53451144,2672.3,2671.1,0.00163823]
[1646513712666,0.86630652,2671.7,2671.6,0.00380337]
[1646513713411,0.00693443,2671.5,2671.1,0.00163823]
[1646513713610,0.00693443,2671.5,2671.0,0.01521694]
[1646513713611,3.50693443,2671.5,2671.0,0.01521694]
[1646513713818,3.50693443,2671.5,2670.7,0.00163823]
[1646513714010,1.09956219,2671.2,2670.7,0.00163823]
[1646513714211,1.09956219,2671.2,2670.4,0.00163823]
[1646513716116,0.00693443,2671.5,2670.4,0.00163823]
[1646513716117,0.00693443,2671.5,2670.4,0.37583823]
[1646513716715,0.00693443,2671.5,2670.4,1.53043823]
[1646513717562,0.00693443,2671.5,2670.8,0.00380403]
[1646513717767,0.00693443,2671.5,2670.8,0.00544226]
[1646513718461,0.00693443,2671.5,2670.8,0.00163823]
[1646513718663,0.00693443,2671.5,2671.0,0.00380386]
[1646513719362,0.00693443,2671.5,2671.0,0.93994386]
[1646513719564,0.00693443,2671.5,2671.0,0.00380386]
[1646513719766,0.02324155,2671.2,2670.8,3.41376823]
[1646513720068,0.02324155,2671.2,2671.1,0.00380377]
[1646513720912,0.02324155,2671.2,2670.7,1.18733823]
[1646513721111,0.02324155,2671.2,2671.0,0.00380386]
[1646513722110,0.02324155,2671.2,2670.7,1.18733823]
[1646513722311,0.02324155,2671.2,2671.0,0.00373258]
[1646513723311,0.02324155,2671.2,2670.7,1.18733823]
[1646513723511,0.02324155,2671.2,2671.0,0.00373258]
[1646513724414,0.00693443,2671.5,2670.7,1.18733823]
[1646513724665,0.00693443,2671.5,2670.7,1.1857]
[1646513724864,0.00693443,2671.5,2671.0,0.00373258]
[1646513725665,0.00693443,2671.5,2670.8,0.93784313]
[1646513726067,0.00693443,2671.5,2671.1,0.00355868]
[1646513726873,0.00693443,2671.5,2670.8,0.93784313]
[1646513727068,0.00693443,2671.5,2671.2,0.00355864]
[1646513728171,0.00693443,2671.5,2670.8,0.93784313]
[1646513728416,0.00693443,2671.5,2671.2,0.0035586]
[1646513729212,0.00693443,2671.5,2670.8,0.01587478]
[1646513729423,0.00693443,2671.5,2670.8,0.00163823]
[1646513729615,0.00693443,2671.5,2671.2,0.00355545]
[1646513730416,0.00693443,2671.5,2670.8,0.00163823]
[1646513730717,0.00693443,2671.5,2671.2,0.00355545]
[1646513731618,0.00693443,2671.5,2670.8,0.00163823]
[1646513732112,0.00693443,2671.5,2671.2,0.00355545]
[1646513732908,0.00693443,2671.5,2670.8,0.00163823]
[1646513733108,0.00693443,2671.5,2671.2,0.00355566]
[1646513734108,0.00693443,2671.5,2670.8,0.00163823]
[1646513734307,0.00693443,2671.5,2671.2,0.00355566]
[1646513734909,0.0054321,2671.5,2671.2,0.00355566]
[1646513735314,0.0054321,2671.5,2670.8,0.00163823]
[1646513735509,0.0054321,2671.5,2671.2,0.00355566]
[1646513736320,0.0054321,2671.5,2671.3,0.54]
[1646513737020,0.0054321,2671.5,2671.3,0.9142]
[1646513737228,0.0054321,2671.5,2671.3,5.02471461]
[1646513737621,0.0054321,2671.5,2671.3,6.02471461]
[1646513738020,0.0054321,2671.5,2671.3,6.02827021]
[1646513739019,0.0054321,2671.5,2671.3,6.02471461]
[1646513739220,0.0054321,2671.5,2671.3,4.5052556]
[1646513739665,0.0054321,2671.5,2671.3,2.9652556]
[1646513740270,0.0054321,2671.5,2671.3,2.9617]
[1646513740470,0.0054321,2671.5,2671.3,2.9652556]
[1646513740773,0.0054321,2671.5,2671.3,0.0035556]
[1646513741370,0.0054321,2671.5,2671.0,0.00163823]
[1646513741571,0.0054321,2671.5,2671.3,0.0035556]
[1646513742569,0.0054321,2671.5,2671.0,0.00163823]
[1646513742869,0.0054321,2671.5,2670.9,8.37]
[1646513742870,0.0054321,2671.5,2671.3,0.0035556]
[1646513743817,0.0054321,2671.5,2671.0,0.00163823]
[1646513744019,0.0054321,2671.5,2671.3,0.00355844]
[1646513745024,0.0054321,2671.5,2671.0,0.00163823]
[1646513745221,0.0054321,2671.5,2671.3,0.00355844]
[1646513746221,0.0054321,2671.5,2671.0,0.00163823]
[1646513746420,0.0054321,2671.5,2671.3,0.00355844]
[1646513747578,0.0054321,2671.5,2671.3,0.00355551]
[1646513748575,0.0054321,2671.5,2671.0,0.00163823]
[1646513748776,0.0054321,2671.5,2671.0,1.1791]
[1646513748979,0.0054321,2671.5,2671.3,0.00355551]
[1646513749879,0.0054321,2671.5,2671.2,0.9479099]
[1646513750082,0.0054321,2671.5,2671.3,1.24145551]
[1646513750479,0.0054321,2671.5,2671.3,4.19815551]
[1646513750919,0.0054321,2671.5,2671.3,5.1946]
[1646513751118,0.0054321,2671.5,2671.3,5.19815755]
[1646513752121,0.0054321,2671.5,2671.3,5.1946]
[1646513752322,0.0054321,2671.5,2671.3,5.19815755]
[1646513753424,0.0054321,2671.5,2671.3,5.1946]
[1646513753625,0.0054321,2671.5,2671.3,5.19815755]
[1646513754672,0.0054321,2671.5,2671.3,5.1946]
[1646513754873,0.0054321,2671.5,2671.3,5.19815546]
[1646513755071,0.0054321,2671.5,2671.3,5.19706161]
[1646513755674,0.0054321,2671.5,2671.3,5.19350615]
[1646513756073,0.0054321,2671.5,2671.3,5.19706161]
[1646513757074,0.0054321,2671.5,2671.3,5.19350615]
[1646513757275,0.0054321,2671.5,2671.3,5.19706161]
[1646513758309,0.0054321,2671.5,2671.3,5.19350615]
[1646513758516,0.0054321,2671.5,2671.3,5.19706175]
[1646513759521,0.0054321,2671.5,2671.3,5.19350615]
[1646513759721,0.0054321,2671.5,2671.3,5.19706175]
[1646513760526,0.0054321,2671.5,2671.3,5.19350615]
[1646513760722,0.0054321,2671.5,2671.3,5.19706175]
[1646513761724,0.0054321,2671.5,2671.3,5.19350615]
[1646513761923,0.0054321,2671.5,2671.3,5.19706516]
[1646513762361,0.0054321,2671.5,2671.4,1.01607689]
[1646513763569,0.0054321,2671.5,2671.3,5.19706512]
[1646513764069,0.0054321,2671.5,2671.3,5.19350615]
[1646513764467,0.0054321,2671.5,2671.3,5.19706516]
[1646513765270,0.0054321,2671.5,2671.3,1.00355901]
[1646513765469,0.0054321,2671.5,2671.3,1.0]
[1646513765674,0.0054321,2671.5,2671.3,0.00355537]
[1646513766519,0.0054321,2671.5,2671.1,1.1788]
[1646513766720,0.0054321,2671.5,2671.3,0.00355537]
[1646513767723,0.0054321,2671.5,2671.1,1.1788]
[1646513767920,0.0054321,2671.5,2671.3,0.00355537]
[1646513769023,0.0054321,2671.5,2671.1,1.1788]
[1646513769224,0.0054321,2671.5,2671.3,0.00354698]
[1646513770069,0.0054321,2671.5,2671.1,1.1788]
[1646513770471,0.0054321,2671.5,2671.3,0.00354698]
[1646513771273,0.0054321,2671.5,2671.1,1.1788]
[1646513771673,0.0054321,2671.5,2671.3,0.00354698]
[1646513772575,0.0054321,2671.5,2671.1,1.1788]
[1646513772775,0.0054321,2671.5,2671.3,0.00355579]
[1646513773839,0.0054321,2671.5,2671.1,1.1788]
[1646513774040,0.0054321,2671.5,2671.3,0.00355579]
[1646513776140,0.0054321,2671.5,2671.1,1.1788]
[1646513776540,0.0054321,2671.5,2671.3,0.00355558]
[1646513776742,0.00436933,2671.5,2671.3,0.00355558]
[1646513777186,0.00436933,2671.5,2671.3,1.00302831]
[1646513777388,0.00436933,2671.5,2671.3,0.99947273]
[1646513777589,0.00436933,2671.5,2671.3,1.00302831]
[1646513778493,0.00436933,2671.5,2671.3,0.99947273]
[1646513778893,0.00436933,2671.5,2671.3,1.00302831]
[1646513779291,0.00436933,2671.5,2671.3,0.00355558]
[1646513779892,0.00436933,2671.5,2671.1,1.1788]
[1646513780092,0.00436933,2671.5,2671.3,0.0035556]
[1646513780918,0.00436933,2671.5,2671.1,1.1788]
[1646513783734,0.00436933,2671.5,2671.2,0.00380288]
[1646513784572,0.00436933,2671.5,2671.1,1.1788]
[1646513784772,0.00436933,2671.5,2671.2,0.00380283]
[1646513785776,0.00436933,2671.5,2671.1,1.1788]
[1646513786176,0.00436933,2671.5,2671.2,0.00380283]
[1646513787075,0.00436933,2671.5,2671.1,1.1788]
[1646513787276,0.02267636,2671.6,2671.2,0.00380283]
[1646513788313,0.02267636,2671.6,2671.1,2.1148786]
[1646513788517,0.02267636,2671.6,2671.3,0.0036887]
[1646513788819,0.02267636,2671.6,2671.3,1.23419946]
[1646513789422,0.99654624,2672.1,2671.4,2.5]
[1646513789423,0.9629103,2672.1,2671.4,2.5]
[1646513789624,1.53809172,2672.0,2671.4,2.5]
[1646513790026,0.03333012,2671.5,2671.4,2.5]
[1646513790826,0.03333012,2671.5,2671.4,3.6452]
[1646513791225,0.03333012,2671.5,2671.4,4.6452]
[1646513791628,0.03333012,2671.5,2671.4,5.1852]
[1646513792268,0.03333012,2671.5,2671.4,7.39824143]
[1646513792468,0.02999711,2671.5,2671.4,7.39824143]
[1646513792670,0.02999711,2671.5,2671.4,5.5595]
[1646513793070,4.7407,2672.8,2671.4,5.5595]
[1646513793270,0.00354744,2672.2,2671.4,5.5595]
[1646513793469,1.53779137,2672.2,2671.4,7.95108828]
[1646513793669,0.00354744,2672.2,2671.4,7.95108828]
[1646513793871,1.53782223,2672.2,2671.4,7.95108828]
[1646513794177,1.01960288,2672.3,2671.4,7.95108828]
[1646513794575,0.00354763,2672.2,2671.5,0.00354856]
[1646513794772,0.00354763,2672.2,2671.6,0.54]
[1646513795374,1.01960288,2672.3,2671.6,0.54]
[1646513795575,1.53783868,2672.2,2671.6,0.54]
[1646513796630,1.5342846,2672.2,2671.6,0.54]
[1646513796840,0.00355408,2672.2,2671.6,0.54]
[1646513797830,1.01960288,2672.3,2671.6,0.54]
[1646513798029,0.00355408,2672.2,2671.6,0.54]
[1646513798429,0.00355408,2672.2,2671.7,1.1297]
[1646513799032,1.04621597,2672.4,2671.7,1.1297]
[1646513799231,0.00355367,2672.2,2671.7,1.1297]
[1646513800272,1.53423552,2672.3,2671.7,1.1297]
[1646513800471,0.00355367,2672.2,2671.7,1.1297]
[1646513801474,1.04621597,2672.4,2671.7,1.1297]
[1646513801671,0.00355367,2672.2,2671.7,1.1297]
[1646513802674,1.53425609,2672.3,2671.7,1.1297]
[1646513802873,0.0035537,2672.2,2671.7,1.1297]
[1646513803918,3.5,2672.7,2671.7,1.1297]
[1646513804118,0.0035537,2672.2,2671.7,1.1297]
[1646513804921,1.534221,2672.4,2671.7,1.3167]
[1646513805123,1.07197138,2672.4,2671.7,1.3167]
[1646513805327,0.00140986,2672.2,2671.7,1.3167]
[1646513805628,0.00140986,2672.2,2671.7,1.1297]
[1646513806224,1.53427266,2672.3,2671.7,1.1297]
[1646513806225,5.03427266,2672.3,2671.7,1.1297]
[1646513806424,1.53782636,2672.2,2671.5,0.00355463]
[1646513806629,3.5,2672.1,2671.5,0.00355463]
[1646513806827,1.53427266,2672.0,2671.5,0.00355463]
[1646513807276,1.14348895,2671.8,2671.5,0.00355463]
[1646513807473,1.14348895,2671.8,2671.4,2.5]
[1646513807676,1.14348895,2671.8,2671.5,0.00355452]
[1646513808077,0.00355359,2672.2,2671.5,0.00355452]
[1646513808279,1.53801378,2672.2,2671.5,0.00355452]
[1646513808679,1.53446019,2672.1,2671.4,3.5]
[1646513808878,1.53446019,2672.0,2671.5,0.00355457]
[1646513809077,1.11822075,2671.9,2671.5,0.00355457]
[1646513809782,1.11822075,2671.9,2671.4,3.5]
[1646513809978,1.11822075,2671.9,2671.5,0.00355361]
[1646513810928,1.11822075,2671.9,2671.4,3.5]
[1646513811129,1.11822075,2671.9,2671.4,2.5]
[1646513811328,1.11822075,2671.9,2671.5,0.00355361]
[1646513812131,1.11822075,2671.9,2671.4,3.5]
[1646513812533,1.11822075,2671.9,2671.5,0.00355361]
[1646513813331,1.11822075,2671.9,2671.4,3.5]
[1646513813532,1.11822075,2671.9,2671.4,2.5]
[1646513813732,1.53449981,2671.8,2671.5,0.00355367]
[1646513814135,1.11822075,2671.9,2671.5,0.00355367]
[1646513814572,1.11822075,2671.9,2671.4,3.5]
[1646513814983,1.11822075,2671.9,2671.5,0.00355367]
[1646513815881,1.11702063,2671.9,2671.4,1.0]
[1646513816079,1.53453295,2671.8,2671.5,0.00355367]
[1646513816680,1.11702063,2671.9,2671.5,0.00355367]
[1646513816981,3.5,2672.3,2671.1,1.18403823]
[1646513817181,1.53805708,2672.2,2671.5,0.00355365]
[1646513817381,3.5,2672.1,2671.5,0.00355365]
[1646513817586,1.53450437,2672.0,2671.5,0.00355365]
[1646513817883,1.53450437,2671.9,2671.5,0.00355365]
[1646513818081,1.53450437,2671.8,2671.5,0.00355365]
[1646513818338,1.53450437,2671.8,2671.1,1.37103823]
[1646513818534,1.53450437,2671.8,2671.5,0.00355367]
[1646513819135,5.03450437,2671.8,2671.5,0.00355367]
[1646513819340,1.53450437,2671.7,2671.1,1.18403823]
[1646513819536,3.5,2671.6,2671.1,1.18403823]
[1646513819736,3.5,2671.6,2671.5,0.00355365]
[1646513819938,1.534696,2671.6,2671.5,0.00355365]
[1646513820141,3.5,2671.6,2671.5,0.00355365]
[1646513820338,5.034696,2671.6,2671.5,0.00355365]
[1646513820537,1.534696,2671.6,2670.8,0.00163823]
[1646513820739,0.01003777,2671.4,2670.8,0.00163823]
[1646513820939,1.03208744,2671.2,2670.6,2.44683823]
[1646513821138,0.01003777,2671.4,2670.6,1.22793823]
[1646513822385,1.04792282,2671.4,2670.6,1.22793823]
[1646513823479,3.5,2671.3,2670.6,0.00163823]
[1646513823679,1.04792282,2671.4,2670.5,3.39035072]
[1646513823879,1.04792282,2671.4,2670.6,0.187]
[1646513824082,1.04792282,2671.4,2670.6,0.18863823]
[1646513824481,1.04792282,2671.4,2670.9,0.00379942]
[1646513825482,1.04792282,2671.4,2670.7,0.00163823]
[1646513825684,1.04792282,2671.4,2671.0,0.00379929]
[1646513826329,0.01003777,2671.4,2671.0,0.00379929]
[1646513826532,0.01003777,2671.4,2670.8,0.00163823]
[1646513826728,0.01003777,2671.4,2670.8,1.21723823]
[1646513826929,0.01003777,2671.4,2671.1,0.00379925]
[1646513827529,0.01003777,2671.4,2671.1,0.90663043]
[1646513827934,0.01003777,2671.4,2671.1,0.90283118]
[1646513828130,0.01003777,2671.4,2671.2,1.1979]
[1646513829333,0.01003777,2671.4,2671.2,1.20157094]
[1646513830182,0.01003777,2671.4,2671.2,1.1979]
[1646513832790,0.01003777,2671.4,2671.2,1.20169622]
[1646513833822,0.01003777,2671.4,2671.2,1.1979]
[1646513833823,1.10644595,2671.4,2671.2,1.1979]
[1646513834021,1.10644595,2671.4,2671.2,0.00379622]
[1646513835027,1.10644595,2671.4,2670.8,0.18863823]
[1646513835225,1.10644595,2671.4,2671.2,0.00379622]
[1646513836228,3.5,2671.3,2670.9,0.00163823]
[1646513836433,1.10644595,2671.4,2671.2,0.00379622]
[1646513836639,1.53485843,2671.3,2671.2,0.00379622]
[1646513837369,1.53485843,2671.3,2670.5,0.00163823]
[1646513837571,1.22873216,2670.7,2670.5,0.00163823]
[1646513837770,1.22873216,2670.7,2670.1,9.82653387]
[1646513837771,1.22873216,2670.7,2670.3,0.00163823]
[1646513837970,3.5,2671.2,2670.1,8.37]
[1646513838170,1.53495463,2671.1,2670.2,0.00163823]
[1646513838378,0.01003777,2671.4,2670.2,0.00163823]
[1646513838574,1.53493484,2671.3,2670.2,0.00163823]
[1646513838776,3.5,2671.2,2670.2,0.00163823]
[1646513838980,1.12427457,2671.0,2670.2,0.00163823]
[1646513839983,3.5,2670.9,2670.2,0.00163823]
[1646513840180,3.5,2670.9,2670.1,7.37]
[1646513840181,1.53516206,2670.8,2670.1,7.37]
[1646513840380,3.5,2670.7,2670.1,7.37]
[1646513840578,2.43788738,2670.8,2670.1,7.37]
[1646513840579,0.90272532,2670.8,2670.1,7.37]
[1646513840843,1.53522486,2670.7,2670.1,7.37]
[1646513841039,1.20473295,2670.4,2670.1,7.37]
[1646513841237,1.20473295,2670.4,2670.3,0.00379395]
[1646513841434,0.00692601,2670.2,2670.1,7.37]
[1646513842235,0.00692601,2670.2,2669.7,0.00163823]
[1646513842436,0.00692601,2670.2,2669.6,2.38968497]
[1646513842836,0.00692601,2670.2,2669.3,0.00163823]
[1646513843938,0.00692601,2670.2,2669.3,0.19209964]
[1646513844137,0.00692601,2670.2,2669.3,2.58040796]
[1646513844684,0.00692601,2670.2,2669.4,0.00161443]
[1646513846085,0.00692601,2670.2,2669.7,0.00379149]
[1646513847086,0.00692601,2670.2,2669.4,0.00161443]
[1646513847286,0.00692601,2670.2,2669.8,0.00379136]
[1646513848335,0.00692601,2670.2,2669.4,1.13241443]
[1646513848531,0.00692601,2670.2,2669.9,0.00379131]
[1646513849331,1.10381238,2670.3,2669.9,0.00379131]
[1646513849531,0.87426573,2669.8,2669.4,0.00161443]
[1646513849732,1.48018784,2669.8,2669.5,0.01516735]
[1646513849933,4.694,2670.4,2669.5,0.01516735]
[1646513850131,0.1872,2670.3,2669.5,0.01516735]
[1646513850733,0.1872,2670.3,2669.3,0.00161443]
[1646513850934,1.08448043,2670.3,2669.8,0.00366344]
[1646513851335,3.5,2670.2,2669.8,0.00366344]
[1646513851539,1.08448043,2670.3,2669.8,0.00366344]
[1646513851835,1.08448043,2670.3,2669.3,0.00161443]
[1646513852073,3.5,2670.2,2669.9,0.00366336]
[1646513852280,1.08448043,2670.3,2669.9,0.00366336]
[1646513852479,3.5,2670.2,2669.9,0.00366336]
[1646513853078,3.5,2670.2,2669.3,0.00161443]
[1646513853279,3.5,2670.2,2669.9,0.00366331]
[1646513853477,1.08448043,2670.3,2669.9,0.00366331]
[1646513854287,1.08448043,2670.3,2669.3,0.00161443]
[1646513854482,3.5,2670.2,2670.0,0.00353551]
[1646513854683,1.08448043,2670.3,2670.0,0.00353551]
[1646513855585,1.08448043,2670.3,2670.0,0.00353547]
[1646513856639,1.08448043,2670.3,2669.6,0.00161443]
[1646513856834,1.08448043,2670.3,2670.0,0.00353547]
[1646513857738,1.08448043,2670.3,2669.6,0.01414401]
[1646513857937,1.08448043,2670.3,2669.3,0.00161443]
[1646513858137,1.08448043,2670.3,2670.0,0.00354409]
[1646513859038,1.08448043,2670.3,2669.3,0.00161443]
[1646513859243,1.08448043,2670.3,2670.0,0.00354409]
[1646513860279,3.5,2670.2,2669.3,0.00161443]
[1646513860480,1.08448043,2670.3,2670.0,0.00354409]
[1646513861380,1.08448043,2670.3,2669.3,0.00161443]
[1646513861581,1.08448043,2670.3,2670.0,0.00354351]
[1646513862583,1.08448043,2670.3,2669.3,0.00161443]
[1646513862984,1.08448043,2670.3,2670.0,0.00354351]
[1646513863822,1.08448043,2670.3,2669.3,0.00161443]
[1646513864022,1.08448043,2670.3,2670.0,0.00354351]
[1646513865028,1.08448043,2670.3,2669.3,0.00161443]
[1646513865331,3.5,2670.4,2670.0,0.00354355]
[1646513865531,1.48018515,2670.5,2670.0,0.00354355]
[1646513866331,1.194,2670.7,2670.0,0.89647318]
[1646513866531,1.09125088,2670.9,2670.1,0.00354347]
[1646513867379,1.09125088,2670.9,2669.8,1.24691443]
[1646513867884,1.53524974,2670.8,2670.2,0.00354354]
[1646513868280,5.03524974,2670.8,2670.2,0.00354354]
[1646513868484,1.53524974,2670.7,2670.2,0.00354354]
[1646513868685,1.53524974,2670.7,2669.8,1.24691443]
[1646513868686,0.92602963,2670.0,2669.8,1.24691443]
[1646513868885,0.92602963,2670.0,2669.8,1.2453]
[1646513869086,0.92602963,2670.0,2669.4,1.16121443]
[1646513869285,6.1760985,2670.6,2669.4,1.16121443]
[1646513869489,2.6760985,2670.6,2669.4,1.16121443]
[1646513869685,6.1760985,2670.6,2669.4,1.16121443]
[1646513870085,6.1760985,2670.6,2669.9,0.00354651]
[1646513870486,1.11302186,2670.4,2669.9,0.00354651]
[1646513870687,2.6760985,2670.6,2669.9,0.00354651]
[1646513870930,1.4804985,2670.6,2669.9,0.00354651]
[1646513871142,1.4804985,2670.6,2669.7,0.00161443]
[1646513871332,1.4804985,2670.6,2670.1,0.00354631]
[1646513871930,1.0696935,2670.5,2670.1,0.00354631]
[1646513872330,1.0696935,2670.5,2669.7,0.01580178]
[1646513872331,1.0696935,2670.5,2669.7,0.00161443]
[1646513872534,1.0696935,2670.5,2670.2,0.00354324]
[1646513873334,1.0696935,2670.5,2669.6,1.03368721]
[1646513873735,1.0696935,2670.5,2670.2,0.00354326]
[1646513874801,1.0696935,2670.5,2669.6,1.03368721]
[1646513874997,1.07111957,2670.5,2669.6,1.03368721]
[1646513875396,1.07111957,2670.5,2669.7,3.5]
[1646513875798,1.0696935,2670.5,2669.7,4.5]
[1646513875999,1.0696935,2670.5,2669.7,3.5]
[1646513876198,0.00354322,2670.2,2669.7,4.50354398]
[1646513876397,0.00354322,2670.2,2669.7,3.50354398]
[1646513876597,0.00354322,2670.2,2669.7,1.00354398]
[1646513876797,0.00354322,2670.2,2669.7,0.00354398]
[1646513877098,1.0696935,2670.5,2669.6,1.03368721]
[1646513877099,1.0696935,2670.5,2669.6,2.03368721]
[1646513877301,0.00354314,2670.2,2669.7,0.00514209]
[1646513877498,0.00354314,2670.2,2669.7,0.0035439]
[1646513878351,1.0696935,2670.5,2669.6,1.03368721]
[1646513878547,0.00354314,2670.2,2669.7,0.00514209]
[1646513878747,0.00354314,2670.2,2669.7,0.0035439]
[1646513879548,1.53528023,2670.5,2669.6,1.03368721]
[1646513879850,0.00354358,2670.2,2669.7,0.00514254]
[1646513880046,0.00354358,2670.2,2669.7,0.00354435]
[1646513880647,1.53528023,2670.4,2669.5,3.50159819]
[1646513880851,1.53528023,2670.4,2669.7,0.00354435]
[1646513881049,0.00354358,2670.2,2669.7,0.00354435]
[1646513881948,1.53528023,2670.4,2669.6,0.00159819]
[1646513882177,0.00354358,2670.2,2669.7,0.00354435]
[1646513882985,1.00135341,2670.0,2669.5,0.00159819]
[1646513883182,1.00135341,2670.0,2669.4,1.1596]
[1646513883384,1.53547167,2669.9,2669.7,0.00354431]
[1646513883982,1.53547167,2669.9,2669.7,0.06848574]
[1646513884282,1.53547167,2669.9,2669.7,0.06494143]
[1646513884485,1.53547167,2669.9,2669.7,0.06848566]
[1646513885485,1.53547167,2669.9,2669.7,0.06494143]
[1646513885686,1.53547167,2669.9,2669.7,0.06848566]
[1646513886734,3.5,2670.5,2669.7,0.06494143]
[1646513886935,0.00354348,2670.2,2669.7,0.06848568]
[1646513887734,1.12018621,2670.1,2669.7,0.06848568]
[1646513887936,1.5354623,2670.0,2669.7,0.06494143]
[1646513888235,1.5354623,2670.0,2669.7,0.06848576]
[1646513889038,1.5354623,2670.0,2669.7,0.06494143]
[1646513889239,3.6872,2670.5,2669.7,0.06494143]
[1646513889439,0.00332407,2670.2,2669.7,0.06826622]
[1646513890282,1.53541605,2670.4,2669.7,0.06494143]
[1646513890484,0.00332411,2670.2,2669.7,0.06986445]
[1646513890683,0.00332411,2670.2,2669.7,0.06826626]
[1646513891484,1.53541605,2670.4,2669.7,0.06494143]
[1646513891684,0.00332411,2670.2,2669.7,0.06986445]
[1646513891884,0.00332411,2670.2,2669.7,0.06826626]
[1646513892689,1.53541605,2670.4,2669.7,0.06494143]
[1646513892884,0.00354356,2670.2,2669.7,0.06848576]
[1646513893841,1.53541605,2670.4,2669.7,0.06494143]
[1646513894241,0.00355851,2670.2,2669.7,0.06850071]
[1646513895041,1.53541605,2670.4,2669.7,0.06494143]
[1646513895244,0.00355851,2670.2,2669.7,0.06850071]
[1646513896241,1.53541605,2670.4,2669.7,0.06494143]
[1646513896641,0.00355851,2670.2,2669.7,0.06850071]
[1646513897481,1.53541605,2670.4,2669.7,0.06494143]
[1646513897682,0.00355009,2670.2,2669.7,0.06849229]
[1646513897886,0.00355009,2670.2,2669.7,0.07009048]
[1646513898081,0.00355009,2670.2,2669.7,0.06849229]
[1646513898683,1.53419794,2670.4,2669.7,0.06494143]
[1646513898886,0.00355009,2670.2,2669.7,0.07009048]
[1646513899084,0.00355009,2670.2,2669.7,0.06849229]
[1646513899884,1.53419794,2670.4,2669.7,0.06494143]
[1646513900085,1.53419794,2670.4,2669.7,0.07009048]
[1646513900086,0.00355009,2670.2,2669.7,0.07009048]
[1646513900285,0.00355009,2670.2,2669.7,0.06849229]
[1646513901132,1.53419794,2670.4,2669.7,0.06494143]
[1646513901334,0.00355042,2670.2,2669.7,0.07009081]
[1646513901531,0.00355042,2670.2,2669.7,0.06849262]
[1646513902334,1.53419794,2670.4,2669.7,0.06494143]
[1646513902534,0.00355042,2670.2,2669.7,0.07009081]
[1646513902733,0.00355042,2670.2,2669.7,0.06849262]
[1646513903533,1.53419794,2670.4,2669.7,0.06494143]
[1646513903735,0.00355042,2670.2,2669.7,0.07009081]
[1646513904034,0.00355042,2670.2,2669.7,0.06849262]
[1646513904688,1.53419794,2670.4,2669.7,0.06494143]
[1646513904890,0.0035504,2670.2,2669.7,0.07009079]
[1646513905089,0.0035504,2670.2,2669.7,0.0684926]
[1646513905990,0.8827132,2670.5,2669.7,0.06494143]
[1646513906189,0.0035504,2670.2,2669.7,0.07009079]
[1646513906391,0.0035504,2670.2,2669.7,0.0684926]
[1646513906992,0.8827132,2670.5,2669.7,0.06494143]
[1646513907194,0.8827132,2670.5,2669.7,0.06653962]
[1646513907393,0.0035504,2670.2,2669.7,0.07009079]
[1646513907593,0.0035504,2670.2,2669.7,0.0684926]
[1646513908198,0.8827132,2670.5,2669.7,0.06494143]
[1646513908426,0.8827132,2670.5,2669.7,0.07009079]
[1646513908629,0.0035504,2670.2,2669.7,0.0684926]
[1646513909432,0.8827132,2670.5,2669.7,0.06494143]
[1646513909832,0.0035504,2670.2,2669.7,0.0684926]
[1646513910632,0.8827132,2670.5,2669.7,0.06494143]